Cogmind - Beta 9.3 *** ADVENTURER MODE // 2020.01.06 @ 07:07:46 // Winter2019/RPGLIKE Player: Rev Result: Smashed by cave-in Performance ------------- Evolutions (7) 3500 Regions Visited (27) 5400 Robots Destroyed (311) 1555 Value Destroyed (13067) 13067 Prototype IDs (40) 800 Alien Tech Used (4) 800 Bonus (6361) 6361 TOTAL SCORE: 31483 Bonus ------- Triggered Max Security 1000 High Alert Combat Kills 1763 Follower Combat Kills 798 Network Hubs Disabled 400 Aligned with FarCom 300 Met Data Miner 300 Met Zhirov 300 Met Warlord at Base 500 MAIN.C Attacked Warlord 500 Scanned by Researcher 500 Cogmind --------- Core Integrity 0/1400 Matter 141/300 Energy 61/1350 System Corruption 10% Temperature Cool (0) Movement Rolling (110) Ox1 Location -3/Quarantine Parts ------- > --- POWER (2) -------- Vortex Chain Reactor > --- PROPULSION (5) --- Compact Wheel Compact Wheel Compact Wheel Improved Antigrav System > --- UTILITY (13) ----- Improved Energy Well Experimental Signal Interpreter Long-range Terrain Scanner Advanced Melee Analysis Suite Experimental Core Analyzer Advanced Actuator Array Force Booster Advanced Transmission Jammer Cloaking Device Centrium Medium Armor Plating Advanced Force Field Point Defense Array Improved System Backup Module > --- WEAPON (3) ------- Sigix Broadsword > --- INVENTORY (5) ---- Component Analysis Suite Longsword +1 Peak State ------------ > --- POWER ------------ Vortex Chain Reactor > --- PROPULSION ------- Wheel Compact Wheel > --- UTILITY ---------- Improved Energy Well Experimental Signal Interpreter Long-range Terrain Scanner Advanced Melee Analysis Suite Experimental Core Analyzer Advanced Actuator Array Force Booster Advanced Transmission Jammer Cloaking Device Centrium Medium Armor Plating Advanced Force Field Point Defense Array Improved System Backup Module > --- WEAPON ----------- Sigix Broadsword Vortex Lance > --- INVENTORY -------- Component Analysis Suite Longsword +1 [Rating: 144] Favorites ----------- Power Quantum Reactor Engine Light Angular Momentum Engine Power Core Neutrino Core Reactor Quantum Reactor Propulsion Wheel Leg Carbon-fiber Leg Wheel Wheel Hover Unit Improved Antigrav System Utility Experimental Sensor Array Device Experimental Sensor Array Storage Improved Energy Well Processor Advanced Melee Analysis Suite Protection Centrium Medium Armor Plating Weapon Longsword +1 Energy Gun Medium Laser Ballistic Gun Heavy Assault Rifle Ballistic Cannon Bore Cannon Slashing Weapon Longsword +1 Piercing Weapon Vortex Lance Special Melee Weapon Improved Datajack Build | -11 -10 -10 -10 -9 -8 -7 -7 -7 -7 -6 -6 -6 -6 -6 -6 -5 -5 -5 -5 -4 -4 -4 -4 -4 -3 -3 -3 ------- Run | Scr Mat Min Exi Min Mat Fac Low Low Dat Pro Fac Ext Cet Arc Hub Fac Upp Upp Zhi Pro Fac Upp Upp War Pro Res Qua Slots Evolved 18 | 3 1 . 1 2 2 1 2 1 . . . . . 1 . 1 . . . 1 . . . . . 1 1 Power 1 | . . . . . . . 1 . . . . . . . . . . . . . . . . . . . . Propulsion 3 | 1 . . . . . . . 1 . . . . . . . 1 . . . . . . . . . . . Utility 12 | 1 1 . 1 2 2 1 1 . . . . . . 1 . . . . . 1 . . . . . 1 . Weapon 2 | 1 . . . . . . . . . . . . . . . . . . . . . . . . . . 1 Parts Attached 134 | 5 8 8 6 2 7 13 3 2 . 6 6 4 3 1 3 11 4 . 3 1 2 3 2 10 2 5 14 Power 8 | 1 . 1 . . . . . 1 . 1 . . 2 . 1 . . . . . . . . 1 . . . Engine 2 | 1 . 1 . . . . . . . . . . . . . . . . . . . . . . . . . Core 1 | . . . . . . . . 1 . . . . . . . . . . . . . . . . . . . Reactor 5 | . . . . . . . . . . 1 . . 2 . 1 . . . . . . . . 1 . . . Propulsion 23 | 2 1 1 . . . 9 . . . . 3 . . . . 2 1 . . . . . . . . 1 3 Treads . | . . . . . . . . . . . . . . . . . . . . . . . . . . . . Leg 4 | . . . . . . 3 . . . . 1 . . . . . . . . . . . . . . . . Wheel 16 | 2 1 1 . . . 4 . . . . 2 . . . . 2 1 . . . . . . . . 1 2 Hover 3 | . . . . . . 2 . . . . . . . . . . . . . . . . . . . . 1 Flight . | . . . . . . . . . . . . . . . . . . . . . . . . . . . . Utility 86 | . 5 3 3 2 6 4 3 1 . 5 3 4 1 1 2 9 3 . 3 1 2 3 2 6 2 4 8 Device 68 | . 2 3 2 2 2 4 2 1 . 5 2 4 . 1 1 8 3 . 2 1 2 3 2 5 2 4 5 Storage 3 | . 2 . . . . . . . . . 1 . . . . . . . . . . . . . . . . Processor 8 | . 1 . 1 . 3 . 1 . . . . . . . . 1 . . . . . . . 1 . . . Hackware . | . . . . . . . . . . . . . . . . . . . . . . . . . . . . Protection 7 | . . . . . 1 . . . . . . . 1 . 1 . . . 1 . . . . . . . 3 Artifact . | . . . . . . . . . . . . . . . . . . . . . . . . . . . . Weapon 17 | 2 2 3 3 . 1 . . . . . . . . . . . . . . . . . . 3 . . 3 Energy Gun 2 | 2 . . . . . . . . . . . . . . . . . . . . . . . . . . . Energy Cannon . | . . . . . . . . . . . . . . . . . . . . . . . . . . . . Ballistic Gun 4 | . 2 1 1 . . . . . . . . . . . . . . . . . . . . . . . . Ballistic Cannon 1 | . . 1 . . . . . . . . . . . . . . . . . . . . . . . . . Launcher . | . . . . . . . . . . . . . . . . . . . . . . . . . . . . Special Weapon . | . . . . . . . . . . . . . . . . . . . . . . . . . . . . Impact Weapon . | . . . . . . . . . . . . . . . . . . . . . . . . . . . . Slashing Weapon 3 | . . . 1 . . . . . . . . . . . . . . . . . . . . 1 . . 1 Piercing Weapon 4 | . . . . . . . . . . . . . . . . . . . . . . . . 2 . . 2 Special Melee Weapon 3 | . . 1 1 . 1 . . . . . . . . . . . . . . . . . . . . . . Unidentified Prototypes 18 | . . . 3 1 . . . . . 2 3 . 1 . . . . . 3 . . 1 . 3 . . 1 Parts Lost 2 | . . . . . . . . . . . . 1 . . . . . . . . . . . . . . 1 Power . | . . . . . . . . . . . . . . . . . . . . . . . . . . . . Propulsion 1 | . . . . . . . . . . . . . . . . . . . . . . . . . . . 1 Utility 1 | . . . . . . . . . . . . 1 . . . . . . . . . . . . . . . Weapon . | . . . . . . . . . . . . . . . . . . . . . . . . . . . . Highest Loss Streak 1 | . . . . . . . . . . . . 1 . . . . . . . . . . . . . . 1 Average Slot Usage (%) 94 | . 97 100 100 100 92 91 87 90 88 88 92 98 100 100 99 98 96 100 98 100 100 95 95 93 90 90 82 Engine 3 | . 13 12 11 10 7 7 6 5 5 3 . . . . . . . . . . . . . . . . . Reactor 4 | . . . . . . . . . . 1 5 5 10 11 11 10 10 10 10 10 10 9 9 7 4 4 4 Wheel 17 | . 27 25 23 20 15 13 12 11 11 11 15 17 17 17 16 15 17 21 21 21 20 19 19 19 19 19 13 Device 33 | . 11 25 23 28 30 34 37 36 35 35 34 38 35 35 37 37 36 36 34 36 40 38 38 36 33 33 32 Storage 2 | . 2 . . . . . . . . . . 5 5 5 5 5 5 5 5 5 5 4 4 4 4 4 4 Processor 12 | . 13 12 18 20 15 14 12 11 11 11 11 11 11 11 11 10 10 10 10 10 10 9 9 10 14 13 13 Protection 4 | . . . . . 6 7 6 5 5 5 5 1 4 5 5 5 5 5 5 5 5 4 4 4 4 4 4 Ballistic Gun 1 | . 27 20 5 . . . . . . . . . . . . . . . . . . . . . . . . Slashing Weapon 5 | . . . 5 10 7 7 6 5 5 5 5 5 5 5 5 5 5 5 5 5 5 4 4 4 4 4 4 Special Melee Weapon 4 | . . . 5 10 7 7 6 5 5 5 5 5 5 5 5 5 5 5 5 5 5 4 4 1 . . . Naked Turns . | . . . . . . . . . . . . . . . . . . . . . . . . . . . . Heaviest Build 93 | 9 14 24 24 22 39 42 44 58 58 72 72 62 82 83 83 83 85 85 85 88 88 88 86 89 83 84 93 Greatest Support 79 | 26 26 20 20 20 20 35 35 35 35 35 47 47 47 47 47 47 63 63 63 63 63 63 63 63 63 79 79 Greatest Overweight (x) 2 | . 1 1 1 1 1 2 1 1 1 2 2 2 1 1 1 2 1 1 1 1 1 1 1 1 1 1 2 Average Overweight (x) . | . . . . . 1 1 1 1 1 1 1 1 1 1 1 1 1 1 1 1 1 1 1 . 1 1 1 Largest Inventory Capacity 5 | 4 4 4 4 4 4 5 5 5 5 5 5 5 5 5 5 5 5 5 5 5 5 5 5 5 5 5 5 Average Capacity 4 | 3 4 4 4 4 4 4 5 5 5 5 5 5 5 5 5 5 5 5 5 5 5 5 5 5 5 5 5 Most Carried 5 | 2 4 4 4 4 4 5 4 5 5 5 5 5 4 4 4 5 5 4 5 5 5 5 5 5 5 5 5 Average Carried 4 | . 2 3 3 2 3 3 4 4 5 4 4 3 3 3 3 4 4 4 4 4 4 4 4 4 5 4 3 Final Capacity 5 | 4 4 4 4 4 4 5 5 5 5 5 5 5 5 5 5 5 5 5 5 5 5 5 5 5 5 5 5 Final Carried 5 | . 3 4 3 2 4 5 4 5 5 5 5 3 4 3 4 4 4 4 5 4 5 5 5 5 5 4 2 Class Distribution -------------------- 70% | Scavenger-Assassin 19% | Assassin 3% | Mutant Dominant Class ---------------- Mutant | -10/Materials Skirmisher | -10/Mines Scavenger-Assassin | -10/Exiles Scavenger-Assassin | -9/Mines Assassin | -8/Materials Assassin | -7/Factory Assassin | -7/Lower Caves Scavenger-Assassin | -7/Lower Caves Scavenger-Assassin | -7/Data Miner Scavenger-Assassin | -6/Proximity Caves Scavenger-Assassin | -6/Factory Scavenger-Assassin | -6/Extension Scavenger-Assassin | -6/Cetus Scavenger-Assassin | -6/Archives Scavenger-Assassin | -6/Hub_04(d) Scavenger-Assassin | -5/Factory Scavenger-Assassin | -5/Upper Caves Scavenger-Assassin | -5/Upper Caves Scavenger-Assassin | -5/Zhirov Scavenger-Assassin | -4/Proximity Caves Scavenger-Assassin | -4/Factory Scavenger-Assassin | -4/Upper Caves Scavenger-Assassin | -4/Upper Caves Scavenger-Assassin | -4/Warlord Scavenger-Assassin | -3/Proximity Caves Scavenger-Assassin | -3/Research Infiltrator-Gladiator | -3/Quarantine Resources | -11 -10 -10 -10 -9 -8 -7 -7 -7 -7 -6 -6 -6 -6 -6 -6 -5 -5 -5 -5 -4 -4 -4 -4 -4 -3 -3 -3 ----------- Run | Scr Mat Min Exi Min Mat Fac Low Low Dat Pro Fac Ext Cet Arc Hub Fac Upp Upp Zhi Pro Fac Upp Upp War Pro Res Qua Matter Collected 2201 | 250 722 200 . 80 70 130 30 20 . 20 50 90 30 . 10 50 130 . . 50 10 60 29 37 83 . 50 Remotely . | . . . . . . . . . . . . . . . . . . . . . . . . . . . . Salvage Created 11996 | . 678 109 . 562 1369 1448 212 1150 . 408 202 425 825 447 516 . 282 86 . 417 82 389 449 . 477 260 1203 Parts 741 | . 43 7 . 47 108 68 6 55 . 15 14 34 41 11 38 . 19 6 . 40 5 10 38 . 32 36 68 Haulers Intercepted 5 | . 1 . . . 3 . . . . 1 . . . . . . . . . . . . . . . . . Recyclers Shooed . | . . . . . . . . . . . . . . . . . . . . . . . . . . . . Parts Field Recycled . | . . . . . . . . . . . . . . . . . . . . . . . . . . . . Retrieved Matter . | . . . . . . . . . . . . . . . . . . . . . . . . . . . . Parts Self-Destructed 289 | . . . . . . . 6 60 . 17 . . . . . . 21 6 . 43 . 7 36 61 32 . . Prevented 10 | . . . . . . . . . . . . . . . . . . . . . . . 1 9 . . . Kills | -11 -10 -10 -10 -9 -8 -7 -7 -7 -7 -6 -6 -6 -6 -6 -6 -5 -5 -5 -5 -4 -4 -4 -4 -4 -3 -3 -3 ------- Run | Scr Mat Min Exi Min Mat Fac Low Low Dat Pro Fac Ext Cet Arc Hub Fac Upp Upp Zhi Pro Fac Upp Upp War Pro Res Qua Combat Hostiles Destroyed 277 | . 13 4 . 19 37 25 4 24 . 6 4 11 24 4 10 . 9 2 . 20 1 3 15 . 12 8 22 Melee 256 | . . . . 19 37 25 4 24 . 6 4 11 24 4 7 . 9 2 . 20 1 3 14 . 12 8 22 Guns 17 | . 13 4 . . . . . . . . . . . . . . . . . . . . . . . . . AOE 2 | . . . . . . . . . . . . . . . 1 . . . . . . . 1 . . . . Classes Destroyed 20 | . 7 . . 1 4 3 . 2 . . . . . . . . . . . . . 1 1 . . . 1 Worker 5 | . 2 . . . . . . . . . . . . . 3 . . . . . . . . . . . . Builder 4 | . 1 . . . . . . . . . 1 . . . 1 . . . . . . . . . . 1 . Tunneler 1 | . . . . 1 . . . . . . . . . . . . . . . . . . . . . . . Hauler 5 | . 1 . . . 3 . . . . 1 . . . . . . . . . . . . . . . . . Recycler 4 | . 3 . . . 1 . . . . . . . . . . . . . . . . . . . . . . Mechanic 1 | . . . . . 1 . . . . . . . . . . . . . . . . . . . . . . Operator 1 | . . . . . 1 . . . . . . . . . . . . . . . . . . . . . . Watcher 13 | . 3 . . . 3 4 . . . . . . . . 2 . . . . . . . . . . . 1 Swarmer 96 | . 6 2 . 6 14 4 3 4 . 2 2 . 9 . 4 . 6 . . 15 . . 9 . 6 4 . Saboteur 2 | . . . . . . . . . . . . . . . . . . . . . . . . . . . 2 Grunt 81 | . 7 2 . 13 12 12 . 10 . 3 . 4 8 . . . 2 . . 3 . . . . 3 . 2 Brawler 9 | . . . . . . 2 . 1 . . . . 1 . . . . . . . . . . . 1 . 4 Duelist 7 | . . . . . . 1 . 4 . . . . 1 . . . . . . . . . . . . . 1 Protector 4 | . . . . . . . . 1 . . . . . . 1 . . . . . . . . . . . 2 Sentry 43 | . . . . . 10 4 1 3 . 1 2 6 . 4 3 . . . . . . 2 . . . 1 6 Specialist 3 | . . . . . . . . . . . . . . . . . . . . . . . 3 . . . . Hunter 12 | . . . . . 1 . . . . . . 1 2 . 1 . . 2 . 1 . . 2 . . . 2 Programmer 14 | . . . . . . 2 . . . . . . . . . . 1 . . 1 1 . 1 . 2 3 3 Cetus Guard 3 | . . . . . . . . . . . . . 3 . . . . . . . . . . . . . . Lightning 1 | . . . . . . . . . . . . . . . 1 . . . . . . . . . . . . Thief 1 | . . . . . . . . 1 . . . . . . . . . . . . . . . . . . . Mutant 1 | . . . . . . . . . . . . . . . . . . . . . . 1 . . . . . Best Kill Streak 12 | . 12 2 . 5 9 5 3 5 . 3 2 3 9 3 8 . 5 2 . 5 1 1 6 . 4 3 10 Combat Bots Only 9 | . 3 2 . 5 7 5 3 5 . 3 2 3 9 3 3 . 5 2 . 5 1 1 6 . 4 3 9 Max Kills in Single Turn 6 | . 1 2 . 1 1 1 1 1 . 1 1 1 1 1 6 . 1 1 . 1 1 1 2 . 1 1 1 Gunslinging 1 | . . 1 . . . . . . . . . . . . . . . . . . . . . . . . . Exploded 1 | . . . . . . . . . . . . . . . 1 . . . . . . . 1 . . . . Melee 1 | . . . . 1 1 1 1 1 . 1 1 1 1 1 1 . 1 1 . 1 1 1 1 . 1 1 1 Uniques/NPCs Destroyed . | . . . . . . . . . . . . . . . . . . . . . . . . . . . . Combat | -11 -10 -10 -10 -9 -8 -7 -7 -7 -7 -6 -6 -6 -6 -6 -6 -5 -5 -5 -5 -4 -4 -4 -4 -4 -3 -3 -3 -------- Run | Scr Mat Min Exi Min Mat Fac Low Low Dat Pro Fac Ext Cet Arc Hub Fac Upp Upp Zhi Pro Fac Upp Upp War Pro Res Qua Damage Taken 11090 | . 395 448 . 363 993 855 123 1227 . 221 138 507 1184 253 369 90 115 47 . 866 15 123 228 . 287 177 2066 Core 8546 | . 311 357 . 286 781 652 91 960 . 163 96 384 907 201 270 71 92 33 . 674 13 96 172 . 215 133 1588 Absorbed by Shields 8021 | . . 151 . 150 383 335 51 443 . 85 159 297 1185 265 414 94 133 52 . 902 15 129 257 . 308 190 2023 Redirected to Core 7454 | . 253 270 . 200 639 575 82 901 . 152 86 334 788 172 237 63 76 33 . 556 5 87 157 . 176 126 1486 Core Remaining (%) 92 | 100 . . . 100 100 . . . . 71 . . . . 73 . . . . 100 . . . . 100 . . Volleys Fired 77 | . 57 20 . . . . . . . . . . . . . . . . . . . . . . . . . Largest 2 | . 2 2 . . . . . . . . . . . . . . . . . . . . . . . . . Hottest 46 | . 46 46 . . . . . . . . . . . . . . . . . . . . . . . . . Shots Fired 154 | . 114 40 . . . . . . . . . . . . . . . . . . . . . . . . . Gun 154 | . 114 40 . . . . . . . . . . . . . . . . . . . . . . . . . Cannon . | . . . . . . . . . . . . . . . . . . . . . . . . . . . . Launcher . | . . . . . . . . . . . . . . . . . . . . . . . . . . . . Special . | . . . . . . . . . . . . . . . . . . . . . . . . . . . . Kinetic 154 | . 114 40 . . . . . . . . . . . . . . . . . . . . . . . . . Thermal . | . . . . . . . . . . . . . . . . . . . . . . . . . . . . Explosive . | . . . . . . . . . . . . . . . . . . . . . . . . . . . . Electromagnetic . | . . . . . . . . . . . . . . . . . . . . . . . . . . . . Robot Hit Streak 15 | . 9 15 . . . . . . . . . . . . . . . . . . . . . . . . . Robot Miss Streak 4 | . 4 3 . . . . . . . . . . . . . . . . . . . . . . . . . Penetration Max . | . . . . . . . . . . . . . . . . . . . . . . . . . . . . Secondary Targets 4 | . 3 1 . . . . . . . . . . . . . . . . . . . . . . . . . Max Gunslinging Chain 1 | . 1 1 . . . . . . . . . . . . . . . . . . . . . . . . . Shots Hit Robots 884 | . 77 26 . 47 96 68 10 74 . 19 11 37 73 19 15 . 23 5 . 50 7 17 30 . 47 31 102 Core Hits 402 | . 29 9 . 20 45 33 4 31 . 7 6 13 30 8 23 . 9 2 . 23 1 6 15 . 23 20 45 Critical Hits 30 | . . . . 3 3 3 . 4 . . . . 1 1 . . . . . . . . 2 . . 2 11 Critical Kills 13 | . . . . 1 2 2 . 2 . . . . 1 . . . . . . . . . 1 . . 1 3 Critical Parts Destroyed 12 | . . . . 2 1 1 . 2 . . . . . 1 . . . . . . . . 1 . . . 4 Melee Attacks 935 | . . . . 47 97 68 10 74 . 20 12 60 80 19 18 1 23 5 . 52 22 19 31 2 50 53 172 Impact . | . . . . . . . . . . . . . . . . . . . . . . . . . . . . Slashing 856 | . . . . 47 96 68 10 74 . 20 12 59 80 19 18 1 23 3 . 52 22 19 31 1 40 41 120 Piercing . | . . . . . . . . . . . . . . . . . . . . . . . . . . . . Entropic 75 | . . . . . . . . . . . . . . . . . . . . . . . . 1 10 12 52 Sneak Attacks 27 | . . . . 1 6 . . 7 . 1 2 3 . . . . 1 2 . . . . 3 . . 1 . Combat Hostiles 4 | . . . . . . . . . . . . 1 . . . . . . . . . . 3 . . . . Follow-up Attacks 44 | . . . . . . . . . . . . . . . . . . . . . . . . . 7 7 30 Damage Inflicted 45481 | . 1096 377 . 2235 5044 3090 512 4171 . 1114 799 2090 3830 973 1984 . 1500 155 . 2510 358 877 1938 . 2929 1757 6142 Guns 1473 | . 1096 377 . . . . . . . . . . . . . . . . . . . . . . . . . Cannons . | . . . . . . . . . . . . . . . . . . . . . . . . . . . . Explosions 1241 | . . . . . . . . . . . . . . . 1241 . . . . . . . . . . . . Melee 42767 | . . . . 2235 5044 3090 512 4171 . 1114 799 2090 3830 973 743 . 1500 155 . 2510 358 877 1938 . 2929 1757 6142 Ramming . | . . . . . . . . . . . . . . . . . . . . . . . . . . . . Kinetic 1473 | . 1096 377 . . . . . . . . . . . . . . . . . . . . . . . . . Thermal . | . . . . . . . . . . . . . . . . . . . . . . . . . . . . Explosive . | . . . . . . . . . . . . . . . . . . . . . . . . . . . . Electromagnetic 1241 | . . . . . . . . . . . . . . . 1241 . . . . . . . . . . . . Impact . | . . . . . . . . . . . . . . . . . . . . . . . . . . . . Slashing 39363 | . . . . 2235 5044 3090 512 4171 . 1114 799 2090 3830 973 743 . 1500 155 . 2510 358 877 1938 . 2313 1209 3902 Piercing . | . . . . . . . . . . . . . . . . . . . . . . . . . . . . Entropic 3404 | . . . . . . . . . . . . . . . . . . . . . . . . . 616 548 2240 Highest Corruption 12 | . . . . . . . . . . . . . . . 4 1 1 . . . . . 3 3 1 3 12 Average Corruption 3 | . . . . . . . . . . . . . . . 3 1 1 . . . . . 2 3 1 1 6 Corruption Purged 10 | . . . . . . . . . . . . . . . . 1 1 . . . . . . . 1 4 3 Effects 30 | . . . . . . . . . . . . . . . 1 . 2 . . . . . 4 1 1 1 20 Message Errors 6 | . . . . . . . . . . . . . . . . . 1 . . . . . 1 1 . . 3 Matter Fused 4 | . . . . . . . . . . . . . . . . . . . . . . . 1 . . . 3 Heat Flow Errors 2 | . . . . . . . . . . . . . . . . . . . . . . . 1 . . . 1 Energy Discharges 3 | . . . . . . . . . . . . . . . . . . . . . . . . . . . 3 Data Loss (minor) 6 | . . . . . . . . . . . . . . . 1 . 1 . . . . . 1 . . 1 2 Alerts 1 | . . . . . . . . . . . . . . . . . . . . . . . . . . . 1 Misdirections 1 | . . . . . . . . . . . . . . . . . . . . . . . . . . . 1 Targeting Errors 7 | . . . . . . . . . . . . . . . . . . . . . . . . . 1 . 6 Overload Shots . | . . . . . . . . . . . . . . . . . . . . . . . . . . . . Overflow Damage 3244 | . . . . 167 471 110 48 380 . 126 127 210 230 . 105 . 339 . . 107 33 61 60 . 500 34 136 Projectiles . | . . . . . . . . . . . . . . . . . . . . . . . . . . . . Explosions 37 | . . . . . . . . . . . . . . . 37 . . . . . . . . . . . . Melee 3207 | . . . . 167 471 110 48 380 . 126 127 210 230 . 68 . 339 . . 107 33 61 60 . 500 34 136 Knockbacks . | . . . . . . . . . . . . . . . . . . . . . . . . . . . . Impact . | . . . . . . . . . . . . . . . . . . . . . . . . . . . . Kinetic . | . . . . . . . . . . . . . . . . . . . . . . . . . . . . Secondary . | . . . . . . . . . . . . . . . . . . . . . . . . . . . . Self-Inflicted Damage 144 | . . . . . . . . . . . . . . . 144 . . . . . . . . . . . . Shots 2 | . . . . . . . . . . . . . . . 2 . . . . . . . . . . . . Rammed . | . . . . . . . . . . . . . . . . . . . . . . . . . . . . Targets Rammed . | . . . . . . . . . . . . . . . . . . . . . . . . . . . . Kicked . | . . . . . . . . . . . . . . . . . . . . . . . . . . . . Crushed . | . . . . . . . . . . . . . . . . . . . . . . . . . . . . Highest Temperature 212 | . 10 4 . . 1 212 . . . . . 14 . . . . . . . . . . 190 . . . 131 Average Temperature 75 | . 2 3 . . 1 98 . . . . . 8 . . . . . . . . . . 102 . . . 84 Received Heat Transfer 2599 | . 195 101 . 188 402 362 8 327 . 71 33 178 239 56 42 . 8 . . 125 . 28 . . 22 12 202 Effects 3 | . . . . . . 3 . . . . . . . . . . . . . . . . . . . . . Interference 3 | . . . . . . 3 . . . . . . . . . . . . . . . . . . . . . Siege Activations . | . . . . . . . . . . . . . . . . . . . . . . . . . . . . Robots Corrupted 2 | . . . . . . . . . . . . . . . 2 . . . . . . . . . . . . Combat Hostiles 2 | . . . . . . . . . . . . . . . 2 . . . . . . . . . . . . Parts Fried 11 | . . . . . . . . . . . . . . . 11 . . . . . . . . . . . . Impact Corruptions . | . . . . . . . . . . . . . . . . . . . . . . . . . . . . Robots Melted . | . . . . . . . . . . . . . . . . . . . . . . . . . . . . Combat Hostiles . | . . . . . . . . . . . . . . . . . . . . . . . . . . . . Parts Melted . | . . . . . . . . . . . . . . . . . . . . . . . . . . . . Heat Transferred . | . . . . . . . . . . . . . . . . . . . . . . . . . . . . Parts Sabotaged 11 | . . . . . . . . . . . . . . . . . . . . . . . . . . . 11 Parts Stolen 1 | . . . . . . . . 1 . . . . . . . . . . . . . . . . . . . Parts Stripped . | . . . . . . . . . . . . . . . . . . . . . . . . . . . . Power Chain Reactions . | . . . . . . . . . . . . . . . . . . . . . . . . . . . . Missiles Intercepted . | . . . . . . . . . . . . . . . . . . . . . . . . . . . . Alert | -11 -10 -10 -10 -9 -8 -7 -7 -7 -7 -6 -6 -6 -6 -6 -6 -5 -5 -5 -5 -4 -4 -4 -4 -4 -3 -3 -3 ------- Run | Scr Mat Min Exi Min Mat Fac Low Low Dat Pro Fac Ext Cet Arc Hub Fac Upp Upp Zhi Pro Fac Upp Upp War Pro Res Qua Peak Influence 2153 | . 221 104 . 362 679 431 . . . . 89 197 351 199 894 377 . . . . 87 . . . . 228 2153 Average Influence 279 | . 96 37 . 238 489 236 . . . . 26 110 173 128 238 292 . . . . 45 . . . . 79 1883 Maximum Alert Level 5 | . 1 . . 1 2 2 . . . . . . 1 . 3 1 . . . . . . . . . 1 5 Low Security (%) 56 | 100 91 100 . 29 4 28 . . . . 100 100 61 100 51 42 . . . . 100 . . . . 89 . Level 1 26 | . 8 . . 70 13 68 . . . . . . 38 . 41 57 . . . . . . . . . 10 . Level 2 11 | . . . . . 81 3 . . . . . . . . . . . . . . . . . . . . . Level 3 . | . . . . . . . . . . . . . . . 7 . . . . . . . . . . . . Level 4 . | . . . . . . . . . . . . . . . . . . . . . . . . . . . . Level 5 . | . . . . . . . . . . . . . . . . . . . . . . . . . . . . High Security . | . . . . . . . . . . . . . . . . . . . . . . . . . . . . Max Security 4 | . . . . . . . . . . . . . . . . . . . . . . . . . . . 99 Squads Dispatched 41 | . 1 . . . 3 3 . 1 . . 2 . 2 . 2 1 . . . . 1 . . . . 1 24 Investigation 3 | . 1 . . . . . . . . . . . 2 . . . . . . . . . . . . . . Extermination 5 | . . . . . . 3 . . . . . . . . . . . . . . 1 . . . . 1 . Reinforcement 8 | . . . . . 3 . . . . . 2 . . . 1 1 . . . . . . . . . . 1 Assault 22 | . . . . . . . . 1 . . . . . . 1 . . . . . . . . . . . 20 Garrison 3 | . . . . . . . . . . . . . . . . . . . . . . . . . . . 3 Intercept . | . . . . . . . . . . . . . . . . . . . . . . . . . . . . Construction Impeded . | . . . . . . . . . . . . . . . . . . . . . . . . . . . . Haulers Reinforced . | . . . . . . . . . . . . . . . . . . . . . . . . . . . . Stealth | -11 -10 -10 -10 -9 -8 -7 -7 -7 -7 -6 -6 -6 -6 -6 -6 -5 -5 -5 -5 -4 -4 -4 -4 -4 -3 -3 -3 --------- Run | Scr Mat Min Exi Min Mat Fac Low Low Dat Pro Fac Ext Cet Arc Hub Fac Upp Upp Zhi Pro Fac Upp Upp War Pro Res Qua Distress Signals 7 | . . . . . 3 1 . . . . . . 1 . . . . . . . 1 . . . . 1 . Communications Jammed 40 | . . . . . . . . . . . . . . . . . . . . . . . . . . 2 38 Distress Signals 36 | . . . . . . . . . . . . . . . . . . . . . . . . . . 1 35 Times Spotted 509 | . 22 14 . 36 55 37 4 30 . 10 6 20 50 4 27 1 12 2 . 22 4 3 15 . 13 12 110 Peak Tracking Total 30 | . 4 8 . 5 7 6 3 10 . 5 3 5 6 2 15 1 5 2 . 5 4 1 5 . 3 3 30 Tactical Retreats 59 | . 1 . . 6 5 3 . 4 . . . 1 15 . 3 . 1 . . 1 1 . 1 . 1 2 14 Traps | -11 -10 -10 -10 -9 -8 -7 -7 -7 -7 -6 -6 -6 -6 -6 -6 -5 -5 -5 -5 -4 -4 -4 -4 -4 -3 -3 -3 ------- Run | Scr Mat Min Exi Min Mat Fac Low Low Dat Pro Fac Ext Cet Arc Hub Fac Upp Upp Zhi Pro Fac Upp Upp War Pro Res Qua Traps Triggered 13 | . 3 1 . . 2 1 . . . . . . . . 2 3 . . . . . . . . . 1 . Indirectly . | . . . . . . . . . . . . . . . . . . . . . . . . . . . . Trap Hack Attempts 53 | . . 1 . . . . . . . . . 49 . . . 3 . . . . . . . . . . . Triggered . | . . . . . . . . . . . . . . . . . . . . . . . . . . . . Disarmed 5 | . . . . . 3 . . . . . . 1 . . . 1 . . . . . . . . . . . Reprogrammed 4 | . . 1 . . . . . . . . . 3 . . . . . . . . . . . . . . . Reused 2 | . . . . . . . . . . . . 2 . . . . . . . . . . . . . . . Traps Extracted 1 | . . 1 . . . . . . . . . . . . . . . . . . . . . . . . . Installed . | . . . . . . . . . . . . . . . . . . . . . . . . . . . . Triggered 11 | . . . . . . . . . . . . 2 . . . . . . . . . . 1 8 . . . Machines | -11 -10 -10 -10 -9 -8 -7 -7 -7 -7 -6 -6 -6 -6 -6 -6 -5 -5 -5 -5 -4 -4 -4 -4 -4 -3 -3 -3 ---------- Run | Scr Mat Min Exi Min Mat Fac Low Low Dat Pro Fac Ext Cet Arc Hub Fac Upp Upp Zhi Pro Fac Upp Upp War Pro Res Qua Machines Disabled 22 | . . . . . . . . . . . . 3 2 . 14 . . . . . . 1 1 . . . 1 Max in Single Turn 14 | . . . . . . . . . . . . . 1 . 14 . . . . . . 1 1 . . . 1 Garrison Access 1 | . . . . . . . . . . . . . . . 1 . . . . . . . . . . . . Network Hub 2 | . . . . . . . . . . . . . . . 2 . . . . . . . . . . . . Machines Sabotaged . | . . . . . . . . . . . . . . . . . . . . . . . . . . . . Garrisons Compromised . | . . . . . . . . . . . . . . . . . . . . . . . . . . . . Overloaded Fab Kills . | . . . . . . . . . . . . . . . . . . . . . . . . . . . . Fab Network Shutdowns . | . . . . . . . . . . . . . . . . . . . . . . . . . . . . Hacking | -11 -10 -10 -10 -9 -8 -7 -7 -7 -7 -6 -6 -6 -6 -6 -6 -5 -5 -5 -5 -4 -4 -4 -4 -4 -3 -3 -3 --------- Run | Scr Mat Min Exi Min Mat Fac Low Low Dat Pro Fac Ext Cet Arc Hub Fac Upp Upp Zhi Pro Fac Upp Upp War Pro Res Qua Machines Accessed 50 | . 6 1 . . 5 5 . 2 4 . 1 3 4 1 1 . . 1 9 . 1 . 1 3 . 2 . Terminals 27 | . 6 . . . 5 3 . . . . 1 3 4 . 1 . . . . . 1 . 1 . . 2 . Fabricators 1 | . . . . . . 1 . . . . . . . . . . . . . . . . . . . . . Repair Stations . | . . . . . . . . . . . . . . . . . . . . . . . . . . . . Recycling Units . | . . . . . . . . . . . . . . . . . . . . . . . . . . . . Scanalyzers 1 | . . . . . . 1 . . . . . . . . . . . . . . . . . . . . . Garrison Access . | . . . . . . . . . . . . . . . . . . . . . . . . . . . . Total Hacks 164 | . 12 1 . . 7 12 . 5 25 . 2 4 10 25 1 . . 1 48 . 2 . 2 4 . 3 . Successful 148 | . 6 1 . . 6 9 . 5 25 . 2 4 6 25 . . . 1 48 . 2 . 2 4 . 2 . Failed 16 | . 6 . . . 1 3 . . . . . . 4 . 1 . . . . . . . . . . 1 . Catastrophic 2 | . 1 . . . . . . . . . . . 1 . . . . . . . . . . . . . . Database Lockouts . | . . . . . . . . . . . . . . . . . . . . . . . . . . . . Manual 3 | . . . 1 . . . . . . . . . . . . . . . . . . . 1 1 . . . Terminals 47 | . 12 . . . 7 4 . . . . 2 4 10 . 1 . . . . . 2 . 2 . . 3 . Fabricators 3 | . . . . . . 3 . . . . . . . . . . . . . . . . . . . . . Repair Stations . | . . . . . . . . . . . . . . . . . . . . . . . . . . . . Recycling Units . | . . . . . . . . . . . . . . . . . . . . . . . . . . . . Scanalyzers 5 | . . . . . . 5 . . . . . . . . . . . . . . . . . . . . . Garrison Access . | . . . . . . . . . . . . . . . . . . . . . . . . . . . . Terminal Hacks 142 | . 6 1 . . 6 3 . 5 25 . 2 4 6 25 . . . 1 48 . 2 . 2 4 . 2 . Record 94 | . 2 . . . 1 1 . 4 11 . 1 1 5 25 . . . . 36 . 1 . 2 2 . 2 . Part Schematic 11 | . . . . . . . . . 7 . . . . . . . . . 4 . . . . . . . . Robot Schematic 4 | . . . . . . . . . 4 . . . . . . . . . . . . . . . . . . Robot Analysis 6 | . . . . . 1 . . . . . . 1 . . . . . . 4 . . . . . . . . Prototype ID Bank 7 | . . . . . . . . . 3 . . . . . . . . . 4 . . . . . . . . Open Door 6 | . . 1 . . . . . 1 . . . . 1 . . . . 1 . . . . . 2 . . . Branch Access Points 2 | . . . . . . 1 . . . . . . . . . . . . . . 1 . . . . . . Unreport Threat 3 | . 1 . . . . 1 . . . . . 1 . . . . . . . . . . . . . . . Locate Traps 2 | . . . . . 1 . . . . . . 1 . . . . . . . . . . . . . . . Disarm Traps 1 | . . . . . 1 . . . . . . . . . . . . . . . . . . . . . . Maintenance Status 1 | . . . . . 1 . . . . . . . . . . . . . . . . . . . . . . Surveillance Status 1 | . 1 . . . . . . . . . . . . . . . . . . . . . . . . . . Hauler Manifests 1 | . 1 . . . . . . . . . . . . . . . . . . . . . . . . . . Registered Prototypes 1 | . 1 . . . . . . . . . . . . . . . . . . . . . . . . . . Zone Layout 2 | . . . . . 1 . . . . . 1 . . . . . . . . . . . . . . . . Fabricator Hacks 3 | . . . . . . 3 . . . . . . . . . . . . . . . . . . . . . Network Status 1 | . . . . . . 1 . . . . . . . . . . . . . . . . . . . . . Load Schematic 1 | . . . . . . 1 . . . . . . . . . . . . . . . . . . . . . Build 1 | . . . . . . 1 . . . . . . . . . . . . . . . . . . . . . Repair Station Hacks . | . . . . . . . . . . . . . . . . . . . . . . . . . . . . Recycling Unit Hacks . | . . . . . . . . . . . . . . . . . . . . . . . . . . . . Scanalyzer 3 | . . . . . . 3 . . . . . . . . . . . . . . . . . . . . . Insert Component 2 | . . . . . . 2 . . . . . . . . . . . . . . . . . . . . . Analyze 1 | . . . . . . 1 . . . . . . . . . . . . . . . . . . . . . Garrison Access Hacks . | . . . . . . . . . . . . . . . . . . . . . . . . . . . . Unauthorized Hacks . | . . . . . . . . . . . . . . . . . . . . . . . . . . . . Terminals . | . . . . . . . . . . . . . . . . . . . . . . . . . . . . Fabricators . | . . . . . . . . . . . . . . . . . . . . . . . . . . . . Repair Stations . | . . . . . . . . . . . . . . . . . . . . . . . . . . . . Recycling Units . | . . . . . . . . . . . . . . . . . . . . . . . . . . . . Scanalyzers . | . . . . . . . . . . . . . . . . . . . . . . . . . . . . Garrison Access . | . . . . . . . . . . . . . . . . . . . . . . . . . . . . Data Cores Recovered . | . . . . . . . . . . . . . . . . . . . . . . . . . . . . Used . | . . . . . . . . . . . . . . . . . . . . . . . . . . . . Hacking Detections 11 | . 2 . . . 1 2 . . . . . 3 2 . . . . . . . . . . . . 1 . Full Trace Events 2 | . . . . . . . . . . . . . 2 . . . . . . . . . . . . . . Feedback Events . | . . . . . . . . . . . . . . . . . . . . . . . . . . . . Feedback Blocked . | . . . . . . . . . . . . . . . . . . . . . . . . . . . . Robot Schematics Acquired 4 | . . . . . . . . . 4 . . . . . . . . . . . . . . . . . . Robots Built . | . . . . . . . . . . . . . . . . . . . . . . . . . . . . Matter . | . . . . . . . . . . . . . . . . . . . . . . . . . . . . Time . | . . . . . . . . . . . . . . . . . . . . . . . . . . . . Total Robot Build Rating . | . . . . . . . . . . . . . . . . . . . . . . . . . . . . Part Schematics Acquired 12 | . . . . . . 1 . . 7 . . . . . . . . . 4 . . . . . . . . Parts Built 1 | . . . . . . 1 . . . . . . . . . . . . . . . . . . . . . Matter 252 | . . . . . . 252 . . . . . . . . . . . . . . . . . . . . . Time 134 | . . . . . . 134 . . . . . . . . . . . . . . . . . . . . . Total Part Build Rating 4 | . . . . . . 4 . . . . . . . . . . . . . . . . . . . . . Parts Repaired . | . . . . . . . . . . . . . . . . . . . . . . . . . . . . Time . | . . . . . . . . . . . . . . . . . . . . . . . . . . . . Parts Recycled . | . . . . . . . . . . . . . . . . . . . . . . . . . . . . Recycled Matter . | . . . . . . . . . . . . . . . . . . . . . . . . . . . . Retrieved Matter . | . . . . . . . . . . . . . . . . . . . . . . . . . . . . Retrieved Components . | . . . . . . . . . . . . . . . . . . . . . . . . . . . . Parts Scanalyzed 2 | . . . . . . 2 . . . . . . . . . . . . . . . . . . . . . Part Schematics Acquired 1 | . . . . . . 1 . . . . . . . . . . . . . . . . . . . . . Parts Damaged 1 | . . . . . . 1 . . . . . . . . . . . . . . . . . . . . . Bothacking | -11 -10 -10 -10 -9 -8 -7 -7 -7 -7 -6 -6 -6 -6 -6 -6 -5 -5 -5 -5 -4 -4 -4 -4 -4 -3 -3 -3 ------------ Run | Scr Mat Min Exi Min Mat Fac Low Low Dat Pro Fac Ext Cet Arc Hub Fac Upp Upp Zhi Pro Fac Upp Upp War Pro Res Qua Used RIF Installer . | . . . . . . . . . . . . . . . . . . . . . . . . . . . . Robots Hacked . | . . . . . . . . . . . . . . . . . . . . . . . . . . . . Non-combat . | . . . . . . . . . . . . . . . . . . . . . . . . . . . . Combat . | . . . . . . . . . . . . . . . . . . . . . . . . . . . . Robot Hacks Applied . | . . . . . . . . . . . . . . . . . . . . . . . . . . . . Relay Couplers Released 1 | . . . . . . . . . . . . . . . 1 . . . . . . . . . . . . Machine Destruction 1 | . . . . . . . . . . . . . . . 1 . . . . . . . . . . . . Robots Rewired . | . . . . . . . . . . . . . . . . . . . . . . . . . . . . Allies Hacked . | . . . . . . . . . . . . . . . . . . . . . . . . . . . . Hacks Repelled . | . . . . . . . . . . . . . . . . . . . . . . . . . . . . Allies | -11 -10 -10 -10 -9 -8 -7 -7 -7 -7 -6 -6 -6 -6 -6 -6 -5 -5 -5 -5 -4 -4 -4 -4 -4 -3 -3 -3 -------- Run | Scr Mat Min Exi Min Mat Fac Low Low Dat Pro Fac Ext Cet Arc Hub Fac Upp Upp Zhi Pro Fac Upp Upp War Pro Res Qua Total Allies 14 | . . . . 3 . . . . . 1 . 10 . . . . . . . . . . . . . . . Largest Group 9 | . . . . 2 2 . . . . 1 1 9 5 . . . . . . . . . . . . . . Highest-Rated Group 381 | . . . . 45 45 . . . . 94 94 381 150 . . . . . . . . . . . . . . Highest-Rated Ally 156 | . . . . 31 31 . . . . 94 94 156 37 . . . . . . . . . . . . . . Total Orders . | . . . . . . . . . . . . . . . . . . . . . . . . . . . . Ally Attacks 158 | . . . . 22 . . . . . 13 5 107 11 . . . . . . . . . . . . . . Total Damage 3162 | . . . . 300 . . . . . 509 137 2003 213 . . . . . . . . . . . . . . Kills 25 | . . . . 5 . . . . . 4 1 13 2 . . . . . . . . . . . . . . Allies Corrupted . | . . . . . . . . . . . . . . . . . . . . . . . . . . . . Allies Melted . | . . . . . . . . . . . . . . . . . . . . . . . . . . . . Intel | -11 -10 -10 -10 -9 -8 -7 -7 -7 -7 -6 -6 -6 -6 -6 -6 -5 -5 -5 -5 -4 -4 -4 -4 -4 -3 -3 -3 ------- Run | Scr Mat Min Exi Min Mat Fac Low Low Dat Pro Fac Ext Cet Arc Hub Fac Upp Upp Zhi Pro Fac Upp Upp War Pro Res Qua Robot Analysis Total 6 | . . . . . 1 . . . . . . 1 . . . . . . 4 . . . . . . . . Derelict Logs Recovered 14 | . . 1 . 1 . . 1 1 . 2 . . . . . . 1 2 . 1 . 2 2 . . . . Drone Launches 5 | . . . 1 . . . . . . . . . . . . . 2 . . 2 . . . . . . . Drone Recoveries . | . . . . . . . . . . . . . . . . . . . . . . . . . . . . Exploration | -11 -10 -10 -10 -9 -8 -7 -7 -7 -7 -6 -6 -6 -6 -6 -6 -5 -5 -5 -5 -4 -4 -4 -4 -4 -3 -3 -3 ------------- Run | Scr Mat Min Exi Min Mat Fac Low Low Dat Pro Fac Ext Cet Arc Hub Fac Upp Upp Zhi Pro Fac Upp Upp War Pro Res Qua Turns Passed 20973 | 35 879 616 284 874 1518 1555 1070 1089 71 854 520 860 1012 256 380 700 971 696 292 1016 640 1040 1023 458 910 828 526 Spaces Moved 17081 | 30 785 550 321 661 1142 1373 1165 955 79 838 451 640 471 166 242 603 740 667 240 777 426 987 872 421 768 498 213 Core 4 | 2 . . . . . 2 . . . . . . . . . . . . . . . . . . . . . Treads . | . . . . . . . . . . . . . . . . . . . . . . . . . . . . Legs . | . . . . . . . . . . . . . . . . . . . . . . . . . . . . Wheels 17076 | 28 785 550 321 661 1142 1370 1165 955 79 838 451 640 471 166 242 603 740 667 240 777 426 987 872 421 768 498 213 Hover 1 | . . . . . . 1 . . . . . . . . . . . . . . . . . . . . . Flight . | . . . . . . . . . . . . . . . . . . . . . . . . . . . . Fastest Speed 50 | 50 80 80 80 80 90 90 90 90 90 90 93 93 93 93 93 93 93 97 97 97 97 97 97 87 97 97 96 Average Speed 92 | 88 81 83 84 84 90 90 90 90 90 91 96 97 93 93 93 93 94 97 97 97 97 97 97 96 97 97 100 Slowest Speed 150 | 100 90 90 90 90 90 150 90 90 90 100 110 110 93 93 93 100 97 97 97 97 97 97 97 97 97 98 120 Overloaded Moves . | . . . . . . . . . . . . . . . . . . . . . . . . . . . . Propulsion Burnouts . | . . . . . . . . . . . . . . . . . . . . . . . . . . . . Robots Hopped . | . . . . . . . . . . . . . . . . . . . . . . . . . . . . Cave-ins Triggered 4 | . . . . . . . . . . . . . . . . . . . . . . . . . . . 4 Teleports 1 | . . . . . . . . . . . . . . . . . . . 1 . . . . . . . . Exploration Rate (%) 68 | 5 99 92 73 95 92 39 99 94 62 93 15 82 90 86 38 19 98 87 62 86 19 95 95 68 80 17 24 Regions Visited 27 Branch Regions 20 Pre-discovered Areas 7 | . . . . . . . . . 1 1 . . . . . . . . 3 . . 1 1 . . . . Known Exits Taken 24 | . . . 1 1 1 1 1 1 1 1 1 1 1 1 1 1 1 1 1 1 1 1 1 1 1 1 . Unknown Exits Taken 3 | 1 1 1 . . . . . . . . . . . . . . . . . . . . . . . . . Scrap Searched 34 | . . 1 . 1 . . 4 4 . 4 . . . . . . 4 2 . 5 . 3 2 . 4 . . Spaces Dug 89 | . . . . . . . . . . 1 1 3 . . 2 1 . . . 2 15 1 . 1 . 17 45 Terrain Destroyed 372 | . . . . . . . . . . 1 1 3 . . 285 1 . . . 2 15 1 . 1 . 17 45 Melee 89 | . . . . . . . . . . 1 1 3 . . 2 1 . . . 2 15 1 . 1 . 17 45 Projectile . | . . . . . . . . . . . . . . . . . . . . . . . . . . . . AOE 283 | . . . . . . . . . . . . . . . 283 . . . . . . . . . . . . Actions | -11 -10 -10 -10 -9 -8 -7 -7 -7 -7 -6 -6 -6 -6 -6 -6 -5 -5 -5 -5 -4 -4 -4 -4 -4 -3 -3 -3 --------- Run | Scr Mat Min Exi Min Mat Fac Low Low Dat Pro Fac Ext Cet Arc Hub Fac Upp Upp Zhi Pro Fac Upp Upp War Pro Res Qua Total 21391 | 36 911 665 336 932 1534 1634 1179 1138 78 910 528 838 996 256 384 735 994 713 299 1008 639 1057 1031 469 908 811 372 Wait 2597 | . 30 59 . 195 228 123 2 64 . 31 48 42 384 71 103 117 198 33 46 128 187 44 101 25 77 254 7 Move 17050 | 29 784 549 320 660 1141 1372 1164 954 78 837 450 639 470 165 241 602 739 666 239 776 425 986 871 420 767 497 209 Hop . | . . . . . . . . . . . . . . . . . . . . . . . . . . . . Pick Up 55 | 2 5 4 4 1 4 6 . 1 . 2 4 . 1 . 1 1 1 . 5 . 2 2 3 5 . . 1 Fast Attach 47 | 3 5 2 1 . . 7 . 2 . 2 1 . 2 . 3 2 1 . 2 . . 1 . 2 . 1 10 Attach 26 | 2 1 . 5 2 1 2 1 . . . 1 2 . 1 . . . . 2 1 . . . . . 1 4 Detach 4 | . 2 . 1 . . . . . . . . . . . . . . . . . . . . . . . 1 Swap 64 | . 2 6 . . 6 4 2 . . 4 4 2 1 . . 9 3 . 1 . 2 3 2 8 2 3 . Drop 62 | . 5 7 5 . 2 12 . . . 4 4 . 2 . . . 2 . 4 . 1 2 3 8 . . 1 Fire 77 | . 57 20 . . . . . . . . . . . . . . . . . . . . . . . . . Melee 860 | . . . . 47 97 68 10 74 . 20 12 60 80 19 18 1 23 5 . 52 22 19 31 1 40 41 120 Ram . | . . . . . . . . . . . . . . . . . . . . . . . . . . . . Kick . | . . . . . . . . . . . . . . . . . . . . . . . . . . . . Crush . | . . . . . . . . . . . . . . . . . . . . . . . . . . . . Escape Stasis 13 | . . . . . . 8 . . . . . . . . . . . . . . . . . . . . 5 Rewire . | . . . . . . . . . . . . . . . . . . . . . . . . . . . . Trap 53 | . . 1 . . . . . . . . . 49 . . . 3 . . . . . . . . . . . Miscellaneous 483 | . 20 17 . 27 55 32 . 43 . 10 4 44 56 . 18 . 27 9 . 51 . . 20 . 22 14 14 Route ------- -11/Scrapyard -10/Materials (discovered 5 exits: [*Mat x3] / *Min x2) -10/Mines (discovered 2 exits: [*Mat] / *Exi) -10/Exiles (discovered 2 exits: *Min x2) -9/Mines (discovered 2 exits: *Mat x2) -8/Materials (discovered 3 exits: *Fac x3) -7/Factory (discovered 2 exits: *Low x2) -7/Lower Caves -7/Lower Caves (discovered 2 exits: *Fac / *Dat) -7/Data Miner -6/Proximity Caves -6/Factory (discovered 3 exits: *Low / *Ext x2) -6/Extension (discovered 3 exits: *Fac x2 / *Cet) -6/Cetus (discovered 2 exits: *Fac / *Arc) -6/Archives (discovered 3 exits: *Fac / *Hub x2) -6/Hub_04(d) (discovered 2 exits: *Fac x2) -5/Factory (discovered 2 exits: *Fac / *Upp) -5/Upper Caves -5/Upper Caves (discovered 2 exits: *Fac / *Zhi) -5/Zhirov -4/Proximity Caves -4/Factory (discovered 3 exits: *Res / *Upp x2) -4/Upper Caves -4/Upper Caves (discovered 2 exits: *Res / *War) -4/Warlord -3/Proximity Caves -3/Research (discovered 4 exits: Res x2 / Arm / *Qua) -3/Quarantine (discovered 1 exit: *Res) History --------- Turn | Location | Event 2 | -11/Scrapyard | Met Revision 17 2 | -11/Scrapyard | Upgraded with Propulsion slot (x1) 2 | -11/Scrapyard | Upgraded with Utility slot (x1) 2 | -11/Scrapyard | Upgraded with Weapon slot (x1) 23 | -11/Scrapyard | Discovered new exit (range 15) 36 | -11/Scrapyard | Entered Materials 166 | -10/Materials | Discovered new exit (range 17) 303 | -10/Materials | Build established: Mutant 531 | -10/Materials | Discovered new exit (range 18) 621 | -10/Materials | Discovered new exit (range 13) 738 | -10/Materials | Reached level 2 765 | -10/Materials | Upgraded with Utility slot (x1) 790 | -10/Materials | Discovered new exit (range 5) 837 | -10/Materials | Discovered new exit (range 10) 915 | -10/Materials | Entered Mines 1003 | -10/Mines | Assembled infested the area 1008 | -10/Mines | Assisted by a Guerilla fighting off Assembled 1020 | -10/Mines | Met a Derelict who couldn't figure out how to use a Trap Extractor 1060 | -10/Mines | Build established: Skirmisher 1453 | -10/Mines | Learned Materials terminal intel 1457 | -10/Mines | Discovered new exit (range 8) 1527 | -10/Mines | Deemed a non-threat by the Exiles lab entrance 1527 | -10/Mines | Discovered new exit (range 5) 1531 | -10/Mines | Entered Exiles 1545 | -10/Exiles | Discovered new exit (range 15) 1562 | -10/Exiles | Met 8R-AWN 1577 | -10/Exiles | Met EX-HEX 1604 | -10/Exiles | Met EX-BIN 1617 | -10/Exiles | Reached level 3 1617 | -10/Exiles | Aligned with FarCom system 1618 | -10/Exiles | Given EX-Vault access code 1633 | -10/Exiles | Build established: Scavenger-Skirmisher 1640 | -10/Exiles | Upgraded with Utility slot (x1) 1641 | -10/Exiles | Opened EX-Vault 1650 | -10/Exiles | Found Prototype Device 1650 | -10/Exiles | Identified Supersonic Drone Bay 1659 | -10/Exiles | Found Prototype Ballistic Gun 1661 | -10/Exiles | Identified AWS/Gauss 1664 | -10/Exiles | Found Prototype Slashing Weapon 1665 | -10/Exiles | Identified Longsword +1 1687 | -10/Exiles | Warned to stay clear of 0b10 Research branches 1711 | -10/Exiles | Met EX-DEC 1806 | -10/Exiles | Discovered new exit (range 10) 1814 | -10/Exiles | Identified exit to Mines 1815 | -10/Exiles | Left Exiles lab with Longsword +1 1815 | -10/Exiles | Entered Mines 1815 | -9/Mines | Accompanied by 1 ally 1878 | -9/Mines | Reached level 4 1936 | -9/Mines | Build established: Scavenger-Assassin 1973 | -9/Mines | Learned 4 Materials zone layouts 1980 | -9/Mines | Received a Mining Laser from a helpful Derelict 2184 | -9/Mines | Discovered new exit (range 10) 2247 | -9/Mines | Identified exit to Materials 2278 | -9/Mines | Found a damaged Exp. Sensor Array with a note attached 2286 | -9/Mines | Reached level 5 2289 | -9/Mines | Found Prototype Device 2290 | -9/Mines | Upgraded with Utility slot (x2) 2290 | -9/Mines | Identified Exp. Sensor Array 2364 | -9/Mines | Discovered exit to Materials (range 8) 2689 | -9/Mines | Entered Materials 2689 | -8/Materials | Accompanied by 2 allies 2690 | -8/Materials | Identified exit to Factory 2691 | -8/Materials | Loaded intel: 11 terminal locations 2691 | -8/Materials | Reached level 6 2691 | -8/Materials | Reached level 7 2694 | -8/Materials | Led the pair of lost Derelicts to an unsafe place 2862 | -8/Materials | Reached level 8 2867 | -8/Materials | Upgraded with Utility slot (x2) 3137 | -8/Materials | Reached level 9 3242 | -8/Materials | Discovered exit to Factory (range 13) 3432 | -8/Materials | Build established: Assassin 3669 | -8/Materials | Discovered exit to Factory (range 16) 4044 | -8/Materials | Reached level 10 4084 | -8/Materials | Destroyed 7 combat bots 4207 | -8/Materials | Entered Factory 4209 | -7/Factory | Reached level 11 4213 | -7/Factory | Upgraded with Utility slot (x1) 4773 | -7/Factory | Fabricated Imp. Spread Laser? 4885 | -7/Factory | Identified exit to Lower Caves 5028 | -7/Factory | Reached level 12 5507 | -7/Factory | Core integrity fell below 50% 5513 | -7/Factory | Reached level 13 5762 | -7/Factory | Entered Lower Caves 5762 | -7/Lower Caves | Upgraded with Utility slot (x1) 5764 | -7/Lower Caves | Reached level 14 5764 | -7/Lower Caves | Upgraded with Power slot (x1) 6037 | -7/Lower Caves | Attracted the attention of an 0b10 checkpoint 6063 | -7/Lower Caves | Discovered new exit (range 6) 6068 | -7/Lower Caves | Identified exit to Lower Caves 6832 | -7/Lower Caves | Entered another Lower Caves area 6833 | -7/Lower Caves | Imp. Shield Generator stolen by Master Thief 6871 | -7/Lower Caves | Discovered new exit (range 23) 6906 | -7/Lower Caves | Identified exit to Factory 6942 | -7/Lower Caves | Attracted the attention of an 0b10 checkpoint 7148 | -7/Lower Caves | Discovered new exit (range 22) 7168 | -7/Lower Caves | Identified exit to Data Miner 7451 | -7/Lower Caves | Build established: Scavenger-Assassin 7505 | -7/Lower Caves | Learned location of 1 exit from Research 7505 | -7/Lower Caves | Learned Extension trap positions 7570 | -7/Lower Caves | Learned Factory trap positions 7594 | -7/Lower Caves | Attracted the attention of an 0b10 outpost 7683 | -7/Lower Caves | Reached level 15 7746 | -7/Lower Caves | Core integrity fell below 20% 7849 | -7/Lower Caves | Upgraded with Propulsion slot (x1) 7921 | -7/Lower Caves | Entered Data Miner 7921 | -7/Data Miner | Discovered new exit (range 6) 7939 | -7/Data Miner | Met Data Miner 7955 | -7/Data Miner | Learned location of Section 7 (-2) 7955 | -7/Data Miner | Acquired the access code to Warlord's prototype stash 7973 | -7/Data Miner | Received God Mode back door access code from Data Miner 7991 | -7/Data Miner | Identified exit to Proximity Caves 7992 | -7/Data Miner | Entered Proximity Caves 7994 | -6/Proximity Caves | Attracted the attention of an 0b10 checkpoint 7994 | -6/Proximity Caves | Reached level 16 8125 | -6/Proximity Caves | Escorted by Enhanced Grunt 8281 | -6/Proximity Caves | Discovered exit to Factory (range 22) 8595 | -6/Proximity Caves | Reached level 17 8642 | -6/Proximity Caves | Learned location of Extension (-6) 8846 | -6/Proximity Caves | Entered Factory 8846 | -6/Factory | Accompanied by 1 ally 8847 | -6/Factory | Identified exit to Lower Caves 8848 | -6/Factory | Loaded intel: 88 trap records 9035 | -6/Factory | Discovered new exit (range 22) 9275 | -6/Factory | Reached level 18 9299 | -6/Factory | Discovered new exit (range 18) 9323 | -6/Factory | Found Prototype Device 9324 | -6/Factory | Identified Exp. Thermal Shield 9354 | -6/Factory | Identified exit to Extension 9366 | -6/Factory | Entered Extension 9367 | -6/Extension | Loaded intel: 20 trap records 9634 | -6/Extension | Rescued A7 9680 | -6/Extension | Rescued a captive Derelict 9720 | -6/Extension | Rescued a captive Derelict 9721 | -6/Extension | Rescued a captive Derelict 9772 | -6/Extension | Spotted B-75 Beast 9775 | -6/Extension | Rescued a captive Derelict 9800 | -6/Extension | Spotted B-75 Beast 9804 | -6/Extension | Discovered new exit (range 16) 9804 | -6/Extension | Allies destroyed B-75 Beast 9816 | -6/Extension | Allies destroyed B-75 Beast 9871 | -6/Extension | Identified exit to Factory 10077 | -6/Extension | Reached level 19 10081 | -6/Extension | Rescued a captive Derelict 10083 | -6/Extension | Rescued a captive Derelict 10096 | -6/Extension | Rescued a captive Derelict 10098 | -6/Extension | Rescued a captive Derelict 10122 | -6/Extension | Rescued a captive Derelict 10140 | -6/Extension | Discovered new exit (range 17) 10141 | -6/Extension | Discovered exit to Factory (range 20) 10147 | -6/Extension | Extracted ID and sensor layout for unrecognized location from A7's data core 10216 | -6/Extension | Identified exit to Cetus 10226 | -6/Extension | Entered Cetus 10226 | -6/Cetus | Accompanied by 5 allies 10240 | -6/Cetus | Spotted Cetus Guard 10240 | -6/Cetus | Spotted Cetus Guard 10249 | -6/Cetus | Spotted Cetus Guard 10249 | -6/Cetus | Spotted Cetus Guard 10260 | -6/Cetus | Allies destroyed Cetus Guard 10268 | -6/Cetus | Destroyed Cetus Guard 10281 | -6/Cetus | Destroyed Cetus Guard 10299 | -6/Cetus | Destroyed Cetus Guard 10371 | -6/Cetus | Destroyed 9 combat bots 10428 | -6/Cetus | Discovered exit to Factory (range 19) 10962 | -6/Cetus | Discovered new exit (range 20) 11017 | -6/Cetus | Found a strange terminal 11162 | -6/Cetus | Reached level 20 11214 | -6/Cetus | Identified exit to Archives 11238 | -6/Cetus | Entered Archives 11280 | -6/Archives | Discovered new exit (range 23) 11297 | -6/Archives | Discovered exit to Factory (range 23) 11391 | -6/Archives | Discovered new exit (range 21) 11413 | -6/Archives | Unable to access archive contents 11424 | -6/Archives | Unable to access archive contents 11433 | -6/Archives | Unable to access archive contents 11456 | -6/Archives | Identified exit to Hub_04(d) 11493 | -6/Archives | Upgraded with Utility slot (x1) 11494 | -6/Archives | Entered Hub_04(d) 11521 | -6/Hub_04(d) | Discovered exit to Factory (range 24) 11751 | -6/Hub_04(d) | Discovered exit to Factory (range 22) 11847 | -6/Hub_04(d) | Network Hub disabled 11847 | -6/Hub_04(d) | Spotted Lightning 11847 | -6/Hub_04(d) | Spotted Lightning 11847 | -6/Hub_04(d) | Spotted Lightning 11847 | -6/Hub_04(d) | Spotted Lightning 11847 | -6/Hub_04(d) | Spotted Lightning 11847 | -6/Hub_04(d) | Spotted Lightning 11847 | -6/Hub_04(d) | Spotted Lightning 11847 | -6/Hub_04(d) | Spotted Lightning 11847 | -6/Hub_04(d) | Spotted Lightning 11847 | -6/Hub_04(d) | Network Hub disabled 11848 | -6/Hub_04(d) | Destroyed Lightning 11849 | -6/Hub_04(d) | Spotted Lightning 11849 | -6/Hub_04(d) | Spotted Lightning 11849 | -6/Hub_04(d) | Spotted Lightning 11873 | -6/Hub_04(d) | Incoming assault squad redirected 11874 | -6/Hub_04(d) | Entered Factory 11876 | -5/Factory | Reached level 21 12187 | -5/Factory | Discovered new exit (range 14) 12204 | -5/Factory | Identified exit to Factory 12277 | -5/Factory | Discovered new exit (range 22) 12410 | -5/Factory | Upgraded with Propulsion slot (x1) 12443 | -5/Factory | Found Prototype Processor 12508 | -5/Factory | Identified Exp. Signal Interpreter 12573 | -5/Factory | Identified exit to Upper Caves 12574 | -5/Factory | Entered Upper Caves 13211 | -5/Upper Caves | Learned Factory stockpile data 13469 | -5/Upper Caves | Discovered new exit (range 11) 13544 | -5/Upper Caves | Identified exit to Upper Caves 13545 | -5/Upper Caves | Entered another Upper Caves area 13547 | -5/Upper Caves | Reached level 22 13631 | -5/Upper Caves | Discovered exit to Factory (range 21) 13700 | -5/Upper Caves | Encountered a Warlord checkpoint 13826 | -5/Upper Caves | Discovered new exit (range 8) 13833 | -5/Upper Caves | Identified exit to Zhirov 14241 | -5/Upper Caves | Entered Zhirov 14241 | -5/Zhirov | Discovered new exit (range 3) 14253 | -5/Zhirov | Identified exit to Proximity Caves 14288 | -5/Zhirov | Met Zhirov 14310 | -5/Zhirov | Learned location of Quarantine (-3) 14310 | -5/Zhirov | Learned location of Testing (-2) 14310 | -5/Zhirov | Learned location of Command (-1) 14332 | -5/Zhirov | Zhirov requested help retrieving the SGEMP Prototype 14354 | -5/Zhirov | Found Alien Artifact 14356 | -5/Zhirov | Identified Integrated Reactor 14356 | -5/Zhirov | Installed Integrated Reactor, increased core energy generation (+2%) 14368 | -5/Zhirov | Found Alien Artifact 14368 | -5/Zhirov | Identified Transdimensional Reconstructor 14368 | -5/Zhirov | Warped through subspace 14533 | -5/Zhirov | Entered Proximity Caves 14692 | -4/Proximity Caves | Reached level 23 15335 | -4/Proximity Caves | Spotted B-86 Titan 15387 | -4/Proximity Caves | Discovered exit to Factory (range 15) 15412 | -4/Proximity Caves | Reached level 24 15548 | -4/Proximity Caves | Upgraded with Utility slot (x1) 15549 | -4/Proximity Caves | Entered Factory 15567 | -4/Factory | Identified exit to Upper Caves 16015 | -4/Factory | Discovered new exit (range 11) 16023 | -4/Factory | Identified exit to Research 16189 | -4/Factory | Entered Upper Caves 16379 | -4/Upper Caves | Found Alien Artifact 16380 | -4/Upper Caves | Identified Core Expander 16380 | -4/Upper Caves | Installed Core Expander, added new Propulsion slot 16651 | -4/Upper Caves | Attracted the attention of an 0b10 checkpoint 16712 | -4/Upper Caves | Encountered a Warlord checkpoint 16750 | -4/Upper Caves | Discovered new exit (range 6) 16754 | -4/Upper Caves | Identified exit to Upper Caves 16916 | -4/Upper Caves | Learned location of 1 exit from Research 16928 | -4/Upper Caves | Attacked by a delusional Derelict stockpiling parts 17019 | -4/Upper Caves | Attracted the attention of an 0b10 outpost 17229 | -4/Upper Caves | Entered another Upper Caves area 17243 | -4/Upper Caves | Discovered exit to Research (range 18) 17356 | -4/Upper Caves | Reached level 25 17720 | -4/Upper Caves | Learned Research garrison access intel 17775 | -4/Upper Caves | Encountered a Warlord checkpoint 17877 | -4/Upper Caves | Discovered new exit (range 18) 17909 | -4/Upper Caves | Acquired the password to a Derelict Tinkerer's latest research 17918 | -4/Upper Caves | Found Prototype Special Weapon 17938 | -4/Upper Caves | Identified Molecular Deconstructor 17962 | -4/Upper Caves | Identified exit to Warlord 18010 | -4/Upper Caves | Caught by Unaware searching for contraband prototypes 18252 | -4/Upper Caves | Entered Warlord 18272 | -4/Warlord | Discovered new exit (range 18) 18314 | -4/Warlord | System corruption cleaned by Quarantine Array 18417 | -4/Warlord | Visited the Vortex Lab 18426 | -4/Warlord | Found Prototype Piercing Weapon 18433 | -4/Warlord | Warlord's base attacked by MAIN.C 18451 | -4/Warlord | Identified Vortex Lance 18455 | -4/Warlord | Found Vortex Lance 18513 | -4/Warlord | Met Warlord 18538 | -4/Warlord | Opened Warlord's prototype stash 18545 | -4/Warlord | Found Prototype Reactor 18545 | -4/Warlord | Identified Vortex Chain Reactor 18558 | -4/Warlord | Found Prototype Processor 18559 | -4/Warlord | Identified Exp. Core Analyzer 18684 | -4/Warlord | Opened side exit 18700 | -4/Warlord | Spotted B-90 Cyclops 18709 | -4/Warlord | Identified exit to Proximity Caves 18710 | -4/Warlord | Entered Proximity Caves 18712 | -3/Proximity Caves | Reached level 26 18969 | -3/Proximity Caves | Spotted B-86 Titan 19570 | -3/Proximity Caves | Discovered exit to Research (range 13) 19620 | -3/Proximity Caves | Entered Research 19621 | -3/Research | Identified exit to Armory 19622 | -3/Research | Identified exit to Research 19622 | -3/Research | Reached level 27 19623 | -3/Research | Loaded intel: 4 garrison access locations 19929 | -3/Research | Reached level 28 20186 | -3/Research | Upgraded with Utility slot (x1) 20380 | -3/Research | Discovered new exit (range 13) 20447 | -3/Research | Identified exit to Quarantine 20448 | -3/Research | Entered Quarantine 20449 | -3/Quarantine | Maximum security lockdown engaged 20623 | -3/Quarantine | Scanned by Researcher 20635 | -3/Quarantine | Garrison activated, responded to threat 20644 | -3/Quarantine | Found Alien Slashing Weapon 20662 | -3/Quarantine | Destroyed 9 combat bots 20668 | -3/Quarantine | Core integrity fell below 50% 20716 | -3/Quarantine | System corruption reached 10% 20726 | -3/Quarantine | Spotted Executioner 20732 | -3/Quarantine | Discovered exit to Research (range 22) 20744 | -3/Quarantine | Reached level 29 20746 | -3/Quarantine | Upgraded with Weapon slot (x1) 20747 | -3/Quarantine | Spotted Striker 20777 | -3/Quarantine | Identified Sigix Broadsword 20821 | -3/Quarantine | Crushed by falling debris 20833 | -3/Quarantine | Crushed by falling debris 20945 | -3/Quarantine | Core integrity fell below 20% 20967 | -3/Quarantine | Destroyed 8 combat bots 20967 | -3/Quarantine | Crushed by falling debris 20967 | -3/Quarantine | Spotted Investigator 20974 | -3/Quarantine | Crushed by falling debris 20974 | -3/Quarantine | Smashed by cave-in Last Messages --------------- System corrupted: Energy discharge (-440). Slug penetrates Wall. Knocked back. Slug penetrates Wall. Acquired Imp. Antigrav System. Acquired Com. Wheel. Penetrated by Slug. C-30 ARC bursts open, deploying its payload. G-73 Enforcer unfolds itself. G-67 Veteran unfolds itself. L-61 Swordsman unfolds itself. Acquired Com. Wheel. The unstable cave ceiling collapses. Y-72 Warden crushed by falling debris. Antimatter Reactor crushed. I-47 Archangel distress signal jammed. The unstable cave ceiling collapses. Crushed by falling debris. The unstable cave ceiling collapses. Crushed by falling debris. Map ----- +----------------------------------------------------+ | ################### ? # ????????????????????? | | ############################ ?????????????????? | | ############################ #????????????????? | | ############################ #####????????????? | | ############################ ######???????????? | | ############################ # ###? ???????? | | ##################### "T # # #### ??????? | | ##################### "" # # #### ""? ???? | | #####################"" + # "?"????? | | #####################" # # "?" ???? | | #####################"" # + ???? | | ##################### "" # # """ ?# | | ############## "" ############# """ "?? | | ###### ################################# """ ""# | | ###### ################################# ""# | | ###### ################################# """ ### | | ###### ################################# """ ### | | ######/################################# """ ### | | ### ######################### ### | | """ """ ##=%[# ################################# | | """""""" #% #### ################################ | | " == #### ############################### | | "%" " ####### ############################## | | " ########## ############################# | | ##################### ########### ############# | | #########################@###### ## ############## | | ########################## ##### # ############### | | ########### ###### ##### ################ | | ########### """ """ ###### ##### ################# | | # """ """ #######bY # ################# | | # """ """ #########g ################## | | """ + """ """ #######mll#################### | | "" "T" # """ """ #####=#Ygg#################### | | "" " " # #xxx#%#gpi ################### | | "" # # #%ggC##################### | | ######+#### l#g######################## | | C CCc%h####################### | | ?##### g g [g